bitfinex-derivatives/quotes_ETHF0:USTF0_20260312
["timestamp","ask_amount","ask_price","bid_price","bid_amount"]
[1773341580666,0.54942238,2051.3,2050.8,0.022]
[1773341580865,0.54942238,2051.3,2050.6,0.022]
[1773341582168,0.54942238,2051.3,2050.6,0.56312249]
[1773341582468,0.54942238,2051.3,2050.6,0.022]
[1773341583861,0.54942238,2051.3,2050.6,0.56312249]
[1773341584457,0.54942238,2051.5,2050.6,0.56312249]
[1773341585266,0.68142238,2051.6,2051.0,0.54112249]
[1773341588373,0.132,2051.6,2051.0,0.54112249]
[1773341588569,0.54942238,2051.7,2051.0,0.54112249]
[1773341588874,6.07390088,2052.6,2050.9,2.84978822]
[1773341588875,0.54942238,2052.1,2051.2,0.54112249]
[1773341589769,0.54942238,2051.9,2051.0,0.54112249]
[1773341589963,0.54942238,2051.9,2050.8,0.54112249]
[1773341590170,0.54942238,2051.7,2051.0,0.54112249]
[1773341590771,0.54942238,2051.9,2051.0,0.54112249]
[1773341591076,0.54942238,2051.8,2051.0,0.54112249]
[1773341591274,0.54942238,2051.6,2050.8,0.54112249]
[1773341592378,0.54942238,2051.6,2051.0,0.54112249]
[1773341593174,0.01329541,2051.6,2051.0,0.54112249]
[1773341594069,0.48722092,2052.1,2051.0,0.54112249]
[1773341594668,0.48722092,2051.9,2051.0,0.54112249]
[1773341596272,0.48706688,2052.3,2051.0,0.54112249]
[1773341596474,0.48706688,2052.3,2051.3,0.54112249]
[1773341596776,0.48706688,2052.3,2051.4,0.54112249]
[1773341597573,0.48706688,2052.0,2051.4,0.56312249]
[1773341598076,0.490743,2051.9,2051.2,0.56312249]
[1773341598276,0.490743,2051.9,2051.2,0.54112249]
[1773341598779,0.490743,2051.7,2050.9,6.384]
[1773341598980,0.490743,2051.7,2050.9,6.92512249]
[1773341599878,0.490743,2051.7,2051.0,0.54112249]
[1773341600277,0.490743,2051.7,2050.9,6.92324365]
[1773341600472,0.490743,2051.7,2051.0,0.53924365]
[1773341601774,0.49029161,2051.3,2050.6,0.53924365]
[1773341603380,0.48749436,2051.1,2050.5,0.00382551]
[1773341603577,0.49370647,2051.1,2050.5,0.00382551]
[1773341604180,0.49370647,2051.1,2050.5,0.54306916]
[1773341606478,0.00621211,2051.1,2050.5,0.54306916]
[1773341606782,0.48553492,2051.5,2050.5,0.54306916]
[1773341607575,0.49176799,2051.5,2050.5,0.54306916]
[1773341608081,0.49176799,2051.5,2050.7,0.53924365]
[1773341610187,0.49414211,2051.3,2050.5,0.54306916]
[1773341612480,0.48455072,2051.1,2050.7,0.022]
[1773341613383,0.46255072,2050.9,2050.5,0.02582551]
[1773341613588,0.46255072,2050.9,2050.3,0.56124365]
[1773341614581,0.46255072,2050.9,2050.3,0.56566822]
[1773341615181,0.46255072,2050.9,2050.3,0.02642457]
[1773341616788,0.33174,2051.0,2050.1,0.56124365]
[1773341616789,0.47652999,2050.7,2050.1,0.56124365]
[1773341617586,0.11,2050.9,2050.1,0.56124365]
[1773341617788,0.11,2050.9,2050.1,0.56744835]
[1773341617789,0.58652999,2050.9,2050.1,0.56744835]
[1773341619281,0.47602766,2050.7,2050.1,0.56744835]
[1773341619887,0.44518566,2050.7,2050.1,0.56744835]
[1773341624689,0.4358834,2050.8,2050.1,0.56744835]
[1773341624988,0.11,2050.9,2050.1,0.56744835]
[1773341625384,0.5458834,2051.4,2050.1,0.56744835]
[1773341625582,0.5458834,2051.4,2050.1,0.54544835]
[1773341625782,0.5238834,2051.4,2051.2,0.022]
[1773341625980,0.49805774,2051.4,2050.8,0.61374677]
[1773341626381,0.24367,2051.6,2050.8,0.61374677]
[1773341626382,0.02823307,2051.5,2050.8,0.61374677]
[1773341626587,0.066,2051.3,2050.8,0.61374677]
[1773341627091,0.56713038,2051.9,2050.8,0.59174677]
[1773341627384,0.54513038,2051.9,2051.7,0.022]
[1773341627587,0.54513038,2051.9,2051.5,0.022]
[1773341627987,0.58913038,2051.9,2051.5,0.022]
[1773341628192,0.59540814,2051.9,2051.5,0.02748967]
[1773341629292,0.54690348,2051.7,2051.3,0.022]
[1773341629683,0.54690348,2051.7,2051.3,0.61374677]
[1773341630290,0.54690348,2051.7,2051.3,0.61994096]
[1773341632698,0.066,2051.8,2051.3,0.61994096]
[1773341633389,0.61452926,2051.8,2051.3,0.61994096]
[1773341635393,0.61452926,2051.8,2051.3,0.02819419]
[1773341635591,0.54886484,2051.6,2051.1,0.58557914]
[1773341635791,0.088,2051.7,2051.1,0.58557914]
[1773341635998,0.63415357,2051.7,2051.1,0.58557914]
[1773341636595,0.63415357,2051.7,2051.1,0.59179127]
[1773341637195,0.088,2051.7,2051.1,0.59179127]
[1773341637396,0.00627776,2051.9,2051.1,0.59179127]
[1773341637593,0.00627776,2051.9,2051.1,0.56979127]
[1773341637792,0.54659408,2052.2,2051.8,0.56357914]
[1773341638601,0.022,2052.2,2051.8,0.56357914]
[1773341638799,0.02794525,2052.2,2051.8,0.56357914]
[1773341638999,0.56231632,2052.4,2051.8,0.56357914]
[1773341639395,0.54031632,2052.4,2052.2,0.022]
[1773341640002,0.54451339,2052.4,2052.2,0.022]
[1773341640201,0.54451339,2052.4,2052.0,0.58557914]
[1773341640499,0.62831632,2052.3,2051.8,0.58557914]
[1773341645703,0.62831632,2052.3,2051.8,0.022]
[1773341646704,0.62831632,2052.3,2051.8,0.58557914]
[1773341650906,0.63426157,2052.3,2051.6,0.58557914]
[1773341651207,0.56231632,2052.1,2051.6,0.58557914]
[1773341651603,0.56231632,2052.1,2051.6,0.022]
[1773341651803,0.56231632,2052.1,2051.6,0.58557914]
[1773341656011,0.088,2052.2,2051.6,0.58557914]
[1773341656212,0.65031632,2052.2,2051.6,0.58557914]
[1773341660823,0.53730611,2052.0,2051.6,0.022]
[1773341661123,0.01779603,2052.0,2051.6,0.022]
[1773341661419,0.01779603,2052.0,2051.6,0.60142904]
[1773341666120,0.01779603,2052.0,2051.4,0.60142904]
[1773341676127,0.53730611,2051.8,2051.4,0.60142904]
[1773341678030,0.24363,2051.9,2051.4,0.60142904]
[1773341678231,0.78093611,2051.9,2051.4,0.60142904]
[1773341678531,0.24363,2051.9,2051.4,0.60142904]
[1773341679933,0.11,2052.1,2051.7,0.57942904]
[1773341682137,2.68351703,2051.9,2051.4,0.58521789]
[1773341682330,0.57243229,2051.6,2051.3,0.56321789]
[1773341682836,0.57243229,2051.7,2051.3,0.56321789]
[1773341684035,0.81608229,2051.8,2051.3,0.56321789]
[1773341684233,0.57243229,2051.7,2051.3,0.56321789]
[1773341686437,0.57243229,2051.9,2051.3,0.56321789]
[1773341691242,0.55503197,2051.7,2051.2,0.61089173]
[1773341691444,0.02316953,2051.7,2051.2,0.61089173]
[1773341692130,0.26683953,2051.7,2051.2,0.022]
[1773341692331,0.55503197,2051.5,2051.0,0.022]
[1773341692537,0.55503197,2051.5,2051.0,0.61089173]
[1773341693439,0.55503197,2051.5,2051.0,0.61560031]
[1773341694441,0.55503197,2051.7,2051.2,0.58889173]
[1773341694644,0.55503197,2051.6,2051.2,0.58889173]
[1773341694843,0.55503197,2051.5,2051.0,0.61560031]
[1773341696439,0.55503197,2051.3,2050.4,0.022]
[1773341696645,0.55503197,2051.1,2050.4,0.022]
[1773341696844,0.55503197,2051.1,2050.4,0.61089173]
[1773341697443,0.55503197,2051.1,2050.4,0.61586058]
[1773341700251,0.55503197,2051.1,2050.4,0.02696885]
[1773341700945,0.55503197,2051.1,2050.4,0.61586058]
[1773341701450,0.55503197,2050.9,2050.4,0.02696885]
[1773341701753,0.00496202,2050.9,2050.4,0.61586058]
[1773341702349,0.55999399,2050.9,2050.4,0.61586058]
[1773341702545,0.00496202,2050.9,2050.4,0.61586058]
[1773341702740,0.55503197,2051.4,2050.4,0.61586058]
[1773341703446,0.55503197,2052.1,2051.2,0.47295992]
[1773341703840,0.5370216,2052.1,2051.7,0.022]
[1773341704042,0.5370216,2052.1,2051.5,0.022]
[1773341704249,0.7806316,2052.1,2051.5,0.022]
[1773341704544,0.55503197,2051.7,2051.3,0.022]
[1773341705347,0.79868197,2051.8,2051.3,0.54319545]
[1773341705546,0.79868197,2051.8,2051.3,0.022]
[1773341705547,0.55503197,2051.7,2051.3,0.022]
[1773341705948,0.24365,2051.8,2051.1,0.022]
[1773341705949,0.55503197,2051.5,2051.1,0.022]
[1773341707047,0.55503197,2051.5,2051.1,0.53616069]
[1773341707644,0.55503197,2051.7,2051.1,0.53616069]
[1773341711359,0.55503197,2051.6,2051.1,0.022]
[1773341712257,0.55503197,2051.6,2051.1,0.52244723]
[1773341712460,0.55503197,2051.6,2051.1,0.022]
[1773341713259,0.55503197,2051.6,2051.1,0.52244723]
[1773341714353,0.55503197,2051.6,2051.1,0.022]
[1773341714552,0.55503197,2051.6,2051.1,0.52222409]
[1773341715351,0.11,2051.8,2051.1,0.022]
[1773341715352,0.55503197,2051.4,2051.1,0.022]
[1773341715558,0.11,2051.8,2050.9,0.022]
[1773341715559,0.55503197,2051.2,2050.9,0.022]
[1773341715756,0.55503197,2051.2,2050.7,0.022]
[1773341718756,0.55503197,2051.2,2050.8,0.49943039]
[1773341720560,0.80347362,2051.3,2050.8,0.49943039]
[1773341720761,0.55976362,2051.2,2050.8,0.49943039]
[1773341721358,0.24371,2051.3,2050.8,0.49943039]
[1773341721557,0.80347362,2051.3,2050.8,0.49943039]
[1773341722059,0.55976362,2051.5,2050.8,0.49943039]
[1773341722461,0.55976362,2051.3,2050.8,0.49943039]
[1773341722761,0.55976362,2051.3,2050.7,0.52108185]
[1773341725756,0.55976362,2051.1,2050.7,0.52108185]
[1773341727065,0.55976362,2051.5,2050.7,0.52108185]
[1773341729359,0.55976362,2051.3,2050.7,0.52108185]
[1773341729559,2.67234172,2051.3,2050.7,0.52108185]
[1773341729764,0.55976362,2051.2,2050.7,0.52108185]
[1773341730066,0.55976362,2051.2,2050.7,0.022]
[1773341730264,0.55976362,2050.8,2050.5,0.022]
[1773341730461,0.59635467,2050.6,2050.1,0.022]
[1773341731366,0.6017515,2050.6,2050.1,0.02685127]
[1773341731768,0.59635467,2050.4,2050.1,0.02685127]
[1773341731968,0.59635467,2050.4,2049.9,0.022]
[1773341732859,0.24919683,2050.6,2049.3,0.022]
[1773341732860,0.59720403,2050.0,2049.5,0.02396678]
[1773341733973,0.59720403,2050.0,2049.5,0.02623866]
[1773341734470,0.59121335,2050.2,2049.6,0.0102831]
[1773341735473,0.59121335,2050.2,2049.5,0.02427188]
[1773341736074,0.59121335,2050.2,2049.6,0.0102831]
[1773341737077,0.59121335,2050.2,2049.5,0.03653916]
[1773341740979,0.59121335,2050.2,2049.6,0.01219062]
[1773341741878,0.59121335,2050.2,2049.5,0.0364625]
[1773341742381,0.59121335,2050.2,2049.6,0.01254292]
[1773341743580,0.59828015,2050.5,2049.6,0.01254292]
[1773341750781,0.60004926,2050.3,2049.6,0.01254292]
[1773341750983,0.60004926,2050.3,2049.6,6.385]
[1773341751390,0.60736953,2050.1,2049.5,0.02427188]
[1773341751591,0.60736953,2049.9,2049.3,6.407]
[1773341752096,0.60736953,2050.3,2049.3,6.407]
[1773341753699,0.60736953,2050.3,2049.3,8.52154674]
[1773341756402,0.60736953,2050.3,2049.7,2.11454674]
[1773341756602,0.60669883,2050.5,2049.9,2.11454674]
[1773341756796,0.60669883,2050.5,2050.0,6.385]
[1773341757500,0.60669883,2050.5,2049.6,6.385]
[1773341762202,0.60669883,2050.5,2049.7,6.385]
[1773341762402,0.60480359,2050.3,2049.7,6.385]
[1773341764804,0.60480359,2050.3,2049.3,0.022]
[1773341765108,0.60299278,2050.1,2049.4,6.385]
[1773341774818,0.60299278,2050.1,2049.5,0.00249012]
[1773341775920,0.60299278,2050.1,2049.6,6.38749012]
[1773341778923,0.60299278,2050.1,2049.7,0.01435694]
[1773341779623,0.60299278,2050.1,2049.6,6.39935694]
[1773341779923,0.59640181,2049.9,2049.3,0.022]
[1773341780125,0.59640181,2049.9,2049.4,6.385]
[1773341780723,0.59640181,2049.7,2049.4,6.385]
[1773341781327,0.59641571,2049.7,2049.4,6.385]
[1773341781825,0.59641571,2049.7,2049.3,0.022]
[1773341782020,0.59641571,2049.7,2049.4,6.385]
[1773341783321,0.59641571,2049.7,2049.3,0.022]
[1773341783520,0.59410995,2049.5,2049.1,6.407]
[1773341783716,0.59410995,2049.3,2048.9,0.022]
[1773341784325,0.59410995,2049.1,2048.7,6.407]
[1773341784524,0.59820183,2049.1,2048.7,6.407]
[1773341786628,0.59757139,2049.3,2048.7,6.407]
[1773341786826,0.59757139,2049.3,2048.8,0.00109341]
[1773341787624,0.60370617,2049.3,2048.8,0.00518529]
[1773341789036,0.60370617,2049.3,2048.9,0.00320441]
[1773341790929,0.60370617,2049.3,2048.8,0.00409188]
[1773341791131,0.60370617,2049.3,2048.9,6.386]
[1773341793131,0.59298678,2049.2,2048.7,0.022]
[1773341793429,0.59298678,2049.2,2048.7,6.408]
[1773341793825,0.59912156,2049.3,2048.8,0.03233937]
[1773341794829,0.24389,2049.8,2048.8,0.03233937]
[1773341794830,0.59298678,2049.5,2048.8,0.03233937]
[1773341795828,0.59676458,2049.5,2048.8,0.0377413]
[1773341797937,0.0037778,2049.5,2048.8,0.0377413]
[1773341798731,0.59298678,2050.1,2049.1,0.0548209]
[1773341798931,0.59298678,2050.1,2049.4,0.05323991]
[1773341799631,0.59711652,2050.1,2049.4,0.05323991]
[1773341801737,0.00412974,2050.1,2049.4,0.05323991]
[1773341803840,0.58650236,2050.1,2049.4,0.05323991]
[1773341805535,0.58237262,2050.5,2049.4,0.05323991]
[1773341806430,0.58669175,2050.5,2049.4,0.05323991]
[1773341807039,0.58669175,2050.5,2049.6,0.04677945]
[1773341807741,0.58237262,2050.4,2049.7,2.11431705]
[1773341807941,0.58237262,2050.4,2049.7,2.1610965]
[1773341808131,0.58237262,2050.4,2050.1,2.11431705]
[1773341808341,0.58669175,2050.5,2050.3,2.11431705]
[1773341808640,0.58669175,2050.5,2050.1,6.385]
[1773341809540,0.58669175,2050.5,2050.1,6.39096714]
[1773341810737,0.58669175,2050.5,2050.1,0.00596714]
[1773341811442,0.59642333,2050.6,2050.1,0.00596714]
[1773341812037,0.59642333,2050.6,2050.0,6.385]
[1773341812439,0.59642333,2050.4,2049.6,0.58036733]
[1773341812739,0.59642333,2050.4,2049.8,0.58036733]
[1773341813041,0.60233423,2050.4,2049.8,6.96910033]
[1773341813441,0.60233423,2050.4,2049.9,0.58036733]
[1773341814641,0.60233423,2050.4,2049.8,0.003733]
[1773341814842,0.60233423,2050.4,2049.8,6.388733]
[1773341815645,0.59642333,2050.2,2049.8,6.388733]
[1773341816442,0.59642333,2050.0,2049.0,0.58036733]
[1773341816639,0.59642333,2050.0,2049.4,0.58036733]
[1773341817446,0.59642333,2050.0,2049.4,0.58272533]
[1773341819344,0.59642333,2050.3,2049.4,0.58272533]
[1773341820445,0.60233423,2050.4,2049.6,0.58036733]
[1773341820640,0.60233423,2050.4,2049.5,2.85326136]
[1773341820641,0.0059109,2050.4,2049.8,0.58036733]
[1773341821748,0.94842333,2050.7,2049.9,0.58036733]
[1773341821946,0.59642333,2050.6,2049.9,0.58036733]
[1773341822444,0.352,2050.7,2049.9,0.58036733]
[1773341822750,0.35642089,2050.7,2049.9,0.58036733]
[1773341823147,0.95284422,2050.7,2049.9,0.58036733]
[1773341823356,0.59642333,2050.6,2050.0,0.58036733]
[1773341823647,0.59642333,2050.6,2050.1,6.96536733]
[1773341823847,0.59642333,2050.6,2050.2,6.385]
[1773341824346,0.59642333,2050.6,2050.2,6.96536733]
[1773341824546,0.59642333,2050.6,2050.2,6.385]
[1773341824948,0.59642333,2050.5,2049.9,0.58036733]
[1773341825750,0.59642333,2050.6,2049.9,0.58036733]
[1773341826443,0.35642089,2050.7,2049.9,0.58036733]
[1773341826842,0.95284422,2050.7,2049.9,0.58036733]
[1773341828148,0.59642333,2050.6,2050.1,0.58036733]
[1773341828940,0.35642089,2050.7,2050.1,0.58036733]
[1773341829550,0.95284422,2050.7,2050.1,0.58036733]
[1773341830848,0.59642333,2050.6,2050.1,0.58036733]
[1773341831152,0.59642333,2050.6,2050.3,0.58036733]
[1773341831453,0.59642333,2050.6,2050.4,6.385]
[1773341831752,0.59642333,2050.6,2050.5,6.385]
[1773341832150,0.95284422,2050.7,2050.5,6.385]
[1773341832350,0.24373,2051.2,2050.6,0.58036733]
[1773341832351,0.59642333,2051.0,2050.6,0.58036733]
[1773341832545,0.59642333,2051.0,2049.8,10.21976012]
[1773341832546,0.59642333,2051.0,2050.0,0.58036733]
[1773341832748,0.59642333,2051.0,2050.2,0.58036733]
[1773341833553,0.60133457,2051.0,2050.2,0.58036733]
[1773341834845,0.60133457,2051.0,2049.8,13.07302148]
[1773341834846,0.59642333,2050.8,2049.9,0.58036733]
[1773341835047,0.59642333,2050.8,2050.0,0.58036733]
[1773341835354,0.59642333,2050.8,2049.4,12.75349075]
[1773341835355,0.59642333,2050.8,2049.6,10.21976012]
[1773341835549,0.59642333,2050.8,2049.8,0.58036733]
[1773341835753,0.59642333,2050.6,2049.8,0.58036733]
[1773341837547,0.61842333,2050.6,2050.1,0.022]
[1773341838052,0.64042333,2050.6,2050.1,0.022]
[1773341844869,0.57449021,2050.4,2050.0,6.386]
[1773341845264,0.57449021,2050.4,2049.9,6.408]
[1773341845859,0.57449021,2050.4,2049.9,6.95107537]
[1773341846059,0.57449021,2050.4,2050.0,0.54307537]
[1773341847160,0.088,2050.5,2049.7,6.408]
[1773341847161,0.57449021,2050.2,2049.7,6.408]
[1773341847467,0.57449021,2050.2,2049.5,0.022]
[1773341848766,0.57449021,2050.0,2049.4,0.002358]
[1773341851574,0.57449021,2050.0,2049.4,0.54543337]
[1773341852077,0.57449021,2050.0,2049.4,0.002358]
[1773341852276,0.57449021,2050.0,2049.4,0.54543337]
[1773341854370,0.57449021,2050.1,2049.5,0.54307537]
[1773341855076,0.57449021,2050.1,2049.6,0.54307537]
[1773341855277,0.57449021,2050.1,2049.7,6.93007537]
[1773341856978,0.57449021,2050.1,2049.8,0.54307537]
[1773341857372,0.57449021,2050.1,2049.7,6.387]
[1773341857678,0.57449021,2050.1,2049.5,0.54307537]
[1773341861186,0.57449021,2050.1,2049.6,6.93007537]
[1773341861477,0.57449021,2050.1,2049.7,0.54307537]
[1773341861676,0.57449021,2050.1,2049.4,0.002358]
[1773341861876,0.57449021,2050.1,2049.5,6.387]
[1773341862479,0.154,2050.2,2049.3,0.022]
[1773341862480,0.57413757,2049.9,2049.3,0.022]
[1773341862679,0.57413757,2049.9,2049.1,6.95396982]
[1773341863479,0.57413757,2049.9,2049.1,6.95849368]
[1773341863677,0.57413757,2049.9,2049.2,0.54496982]
[1773341870687,0.57413757,2049.9,2049.2,6.93196982]
[1773341871382,0.57413757,2049.9,2049.1,0.02652386]
[1773341871585,0.56205838,2049.7,2049.1,0.02652386]
[1773341871786,0.56205838,2049.7,2049.1,0.57477088]
[1773341873186,0.56205838,2049.7,2049.1,0.02652386]
[1773341875190,0.56205838,2049.7,2049.1,0.57477088]
[1773341877390,4.23354899,2050.1,2048.9,0.022]
[1773341877391,0.56205838,2049.5,2048.9,0.022]
[1773341877692,0.56205838,2049.3,2048.7,6.409]
[1773341877983,0.56205838,2049.1,2048.5,0.022]
[1773341878387,0.56579184,2049.1,2048.5,0.02545704]
[1773341879587,0.56205838,2048.5,2047.7,0.022]
[1773341879888,6.00325,2048.8,2047.7,0.57024702]
[1773341879889,0.56205838,2048.4,2047.7,0.57024702]
[1773341880483,0.56205838,2048.4,2047.7,0.57574875]
[1773341883292,0.56205838,2048.8,2047.7,0.57574875]
[1773341888289,0.56205838,2048.6,2047.7,0.57574875]
[1773341894700,0.56205838,2048.4,2047.7,0.57574875]
[1773341900901,0.24402,2048.9,2047.7,0.57574875]
[1773341901101,0.55430031,2048.8,2047.7,0.57574875]
[1773341901802,0.55430031,2048.6,2047.7,0.57574875]
[1773341905605,0.55430031,2048.8,2047.9,0.54651273]
[1773341906299,0.55430031,2048.7,2047.9,0.54651273]
[1773341906602,0.55430031,2048.6,2047.9,0.54651273]
[1773341908000,0.55430031,2048.3,2047.7,0.57401446]
[1773341910208,0.55430031,2048.3,2047.7,0.57401446]
[1773341919410,0.24406,2048.5,2047.7,0.57401446]
[1773341919616,0.55430031,2048.6,2047.7,0.57401446]
[1773341921011,0.55430031,2048.6,2047.9,0.54651273]
[1773341921710,2.6728238,2048.5,2047.9,0.54651273]
[1773341922617,0.59128079,2048.6,2047.9,0.54651273]
[1773341925917,0.59128079,2048.4,2047.9,0.54651273]
[1773341927616,2.11852349,2048.7,2047.9,0.54651273]
[1773341927818,0.59128079,2048.6,2047.9,0.54651273]
[1773341934221,0.54559571,2048.4,2047.7,0.60385105]
[1773341934420,0.54559571,2048.0,2047.7,0.60385105]
[1773341934629,0.54559571,2047.8,2047.5,0.59834932]
[1773341935717,0.54559571,2048.0,2047.7,0.57634932]
[1773341936824,0.54559571,2048.2,2047.7,0.57634932]
[1773341938924,0.54559571,2048.0,2047.5,6.98944037]
[1773341939423,0.54559571,2048.0,2047.6,0.57634932]
[1773341941727,0.54559571,2048.5,2047.8,0.57634932]
[1773341941930,0.54559571,2048.4,2047.8,0.57634932]
[1773341942124,2.6641192,2048.4,2047.8,0.57634932]
[1773341942429,0.54559571,2048.6,2048.2,0.57634932]
[1773341946232,0.54559571,2048.6,2048.1,0.57634932]
[1773341947834,0.54559571,2048.3,2048.0,6.388]
[1773341948143,0.54559571,2048.1,2047.7,0.57634932]
[1773341951934,0.54559571,2048.3,2047.8,0.57634932]
[1773341953539,0.54559571,2048.5,2048.0,0.57634932]
[1773341953742,0.54559571,2048.6,2048.1,0.57634932]
[1773341955645,0.54559571,2048.5,2048.1,0.57634932]
[1773341959646,0.54559571,2048.5,2048.0,6.96434932]
[1773341959949,0.54559571,2048.5,2048.1,0.57634932]
[1773341961154,0.55442901,2048.6,2048.3,0.56139708]
[1773341961452,0.55442901,2048.6,2048.1,0.56139708]
[1773341962354,0.55442901,2048.7,2048.1,0.56139708]
[1773341963155,0.55442901,2048.7,2048.3,0.56139708]
[1773341963552,0.55442901,2048.9,2048.5,0.56139708]
[1773341965154,0.55816247,2049.1,2048.5,0.56139708]
[1773341965852,0.55442901,2049.0,2048.4,6.388]
[1773341966049,0.55442901,2048.8,2048.4,6.94939708]
[1773341966457,0.55442901,2048.8,2048.5,0.56139708]
[1773341968058,0.55442901,2048.9,2048.5,0.56139708]
[1773341968655,0.55442901,2048.9,2048.4,6.94939708]
[1773341969152,0.55442901,2048.9,2047.7,0.24415]
[1773341969153,0.55442901,2048.8,2048.3,0.56139708]
[1773341969357,0.55442901,2048.8,2048.4,0.56139708]
[1773341969556,0.55442901,2048.8,2048.3,6.94939708]
[1773341970257,0.55442901,2048.8,2048.4,0.56139708]
[1773341972158,0.55442901,2048.6,2047.9,0.56139708]
[1773341972462,0.55442901,2048.6,2048.1,0.56139708]
[1773341976160,2.36254349,2048.9,2048.1,0.56139708]
[1773341976161,0.55442901,2048.4,2048.1,0.56139708]
[1773341976366,0.55442901,2048.4,2048.0,6.94939708]
[1773341976566,0.55442901,2048.4,2048.1,0.56139708]
[1773341977468,0.55442901,2048.5,2048.1,0.56139708]
[1773341977768,0.55442901,2048.8,2048.1,0.56139708]
[1773341978368,0.55442901,2048.6,2048.1,0.56139708]
[1773341980768,0.55442901,2048.6,2048.1,6.95039708]
[1773341980968,0.55442901,2048.6,2048.2,0.56139708]
[1773341981570,0.55442901,2048.4,2048.0,6.95039708]
[1773341982469,0.55442901,2048.4,2047.8,0.58568822]
[1773341982664,0.55463177,2048.3,2047.7,0.58568822]
[1773341983072,0.55463177,2048.1,2047.5,0.61077927]
[1773341991369,0.55335093,2048.5,2047.5,0.61077927]
[1773341993076,0.55335093,2048.8,2047.7,0.56076722]
[1773341995382,0.55335093,2048.8,2047.9,0.56076722]
[1773341995681,0.55335093,2048.8,2048.1,0.56076722]
[1773341998077,0.55335093,2049.0,2048.1,0.56076722]
[1773342000578,0.55335093,2048.9,2048.1,0.56076722]
[1773342000785,0.55335093,2048.5,2047.7,0.56076722]
[1773342002780,6.18189657,2048.9,2047.8,0.56076722]
[1773342003086,0.55335093,2048.6,2047.8,0.56076722]
[1773342003686,0.55335093,2048.3,2047.8,0.56076722]
[1773342003882,0.55335093,2048.3,2047.6,0.56076722]
[1773342005187,0.24404,2048.7,2047.5,0.02509105]
[1773342005188,0.55335093,2048.1,2047.5,0.02509105]
[1773342005687,0.55335093,2047.7,2047.3,0.58276722]
[1773342005988,0.55335093,2048.1,2047.3,0.58276722]
[1773342006789,0.55335093,2048.3,2047.5,0.56076722]
[1773342009295,0.55335093,2048.5,2047.5,0.56076722]
[1773342009498,0.55335093,2048.8,2047.7,0.56076722]
[1773342009993,0.55335093,2049.0,2048.0,0.24412]
[1773342010189,0.55335093,2049.0,2048.1,0.56076722]
[1773342011190,0.374,2049.2,2048.3,0.56076722]
[1773342011592,0.374,2049.2,2048.5,0.56076722]
[1773342012296,0.55335093,2049.1,2048.5,0.56076722]
[1773342012501,0.55952037,2049.1,2048.5,0.56450068]
[1773342013296,0.00616944,2049.1,2048.5,0.56450068]
[1773342013993,0.55335093,2049.6,2048.6,0.56076722]
[1773342014199,0.55335093,2049.8,2048.6,0.56076722]
[1773342014397,0.53135093,2049.8,2049.4,0.58276722]
[1773342015304,0.57535093,2049.9,2049.4,0.58276722]
[1773342015504,0.00412374,2049.8,2049.4,0.58276722]
[1773342015803,0.55335093,2050.1,2049.4,0.56076722]
[1773342016097,0.55335093,2050.1,2049.1,6.389]
[1773342016098,0.53135093,2050.1,2049.7,0.022]
[1773342016792,0.5800636,2050.1,2049.7,0.022]
[1773342017101,0.5800636,2050.1,2049.5,0.022]
[1773342017300,0.55335093,2049.9,2049.3,0.022]
[1773342017495,0.088,2049.9,2049.3,0.58276722]
[1773342017802,0.64135093,2049.9,2049.3,0.58276722]
[1773342018793,0.088,2049.9,2049.3,0.58276722]
[1773342021102,0.56774496,2051.2,2049.3,0.58276722]
[1773342021404,0.56774496,2051.2,2049.5,0.57917048]
[1773342021405,0.56774496,2051.0,2049.5,0.57917048]
[1773342021794,0.56774496,2051.0,2049.8,0.022]
[1773342021795,0.56774496,2050.6,2049.8,0.022]
[1773342022302,0.57187352,2050.6,2049.8,0.022]
[1773342022500,0.56774496,2050.4,2049.8,0.60117048]
[1773342022902,0.57245763,2050.3,2049.8,0.60117048]
[1773342023208,0.56774496,2050.3,2049.8,0.60117048]
[1773342023704,0.57245763,2050.2,2049.7,0.57917048]
[1773342024002,0.56774496,2050.2,2049.7,0.57917048]
[1773342025508,0.56774496,2050.0,2049.6,0.60117048]
[1773342025803,0.56774496,2050.0,2049.6,0.022]
[1773342025999,0.24856267,2050.3,2049.2,0.022]
[1773342026000,0.56774496,2049.8,2049.2,0.022]
[1773342027408,0.81165496,2049.8,2049.0,0.022]
[1773342027604,0.56774496,2049.6,2048.8,0.022]
[1773342027810,0.56774496,2049.6,2048.8,0.60117048]
[1773342028013,0.00471267,2049.5,2048.8,0.60117048]
[1773342028707,0.57245763,2049.5,2048.8,0.60117048]
[1773342029100,0.00471267,2049.5,2048.8,0.60117048]
[1773342031410,0.57245763,2049.5,2048.8,0.60117048]
[1773342032709,0.57245763,2049.5,2048.8,0.022]
[1773342032915,0.57245763,2049.5,2048.8,0.60117048]
[1773342036816,0.56774496,2049.5,2048.8,0.60117048]
[1773342037212,0.56774496,2049.3,2048.8,0.022]
[1773342039915,0.56774496,2049.3,2048.6,0.022]
[1773342040118,0.56774496,2049.1,2048.6,0.022]
[1773342040418,0.57183797,2049.1,2048.6,0.60117048]
[1773342042625,0.00409301,2049.1,2048.6,0.60117048]
[1773342042818,4.27479071,2049.9,2048.6,0.60117048]
[1773342042819,0.54763634,2049.6,2048.6,0.60117048]
[1773342043014,6.10658792,2049.7,2048.8,0.57777576]
[1773342043015,0.54763634,2049.7,2048.8,0.57777576]
[1773342043218,0.55234901,2049.6,2048.8,0.57777576]
[1773342043414,0.264,2050.0,2049.0,0.57777576]
[1773342043415,0.55234901,2049.9,2049.0,0.57777576]
[1773342043624,0.55234901,2049.9,2048.6,0.022]
[1773342043625,0.00471267,2049.9,2049.2,0.57777576]
[1773342044218,0.00851183,2049.9,2049.2,0.57777576]
[1773342044420,0.55614817,2049.9,2049.2,0.57777576]
[1773342045521,0.00851183,2049.9,2049.2,0.57777576]
[1773342047018,0.55614817,2049.9,2049.2,0.57777576]
[1773342048022,0.00851183,2049.9,2049.2,0.57777576]
[1773342049420,6.13733504,2050.6,2049.2,0.57777576]
[1773342049421,0.54763634,2050.8,2049.8,0.57777576]
[1773342049624,0.54763634,2051.0,2050.1,0.57777576]
[1773342049815,0.52563634,2051.0,2050.6,0.022]
[1773342050018,0.54763634,2051.2,2050.6,0.59977576]
[1773342050218,0.022,2051.1,2050.6,0.60579223]
[1773342050518,0.00362848,2051.2,2050.6,0.60579223]
[1773342050725,0.59087298,2052.0,2050.7,0.54999918]
[1773342051021,0.59087298,2052.0,2050.6,2.86068615]
[1773342051022,0.56887298,2052.0,2051.1,0.54999918]
[1773342051627,0.56887298,2052.0,2051.0,0.022]
[1773342051628,0.84027207,2052.0,2051.0,0.57199918]